fUSD/lending_fUSD_20260519
["ID","MTS","AMOUNT","RATE_DAILY","PERIOD"]
[422623504,1779166240000,-500.0,0.00024658,7]
[422623505,1779166240000,-500.0,0.00024658,7]
[422623506,1779166240000,-603.98339749,0.00024658,7]
[422623503,1779166240000,-500.0,0.00024658,7]
[422623500,1779166240000,-208.06,0.00024658,2]
[422623496,1779166240000,-179.56,0.00024658,2]
[422623502,1779166240000,-500.0,0.00024658,7]
[422623582,1779166241000,-254.67495,0.00025656,21]
[422623583,1779166241000,-626.0,0.000257,7]
[422623585,1779166241000,-300.0,0.00025889,10]
[422623581,1779166241000,-150.0,0.00025656,21]
[422623579,1779166241000,-150.0,0.00025656,21]
[422623570,1779166241000,-150.0,0.00025656,21]
[422623573,1779166241000,-150.0,0.00025656,21]
[422623576,1779166241000,-150.0,0.00025656,21]
[422623574,1779166241000,-150.0,0.00025656,21]
[422623577,1779166241000,-150.0,0.00025656,21]
[422623578,1779166241000,-150.0,0.00025656,21]
[422623580,1779166241000,-150.0,0.00025656,21]
[422623584,1779166241000,-5530.0,0.000257,3]
[422623597,1779166241000,-5530.0,0.000266,5]
[422623588,1779166241000,-608.9369855,0.0002599,2]
[422623586,1779166241000,-32056.60616414,0.0002589,5]
[422623587,1779166241000,-1567.56,0.00025948,7]
[422623591,1779166241000,-400.29843382,0.00026,20]
[422623590,1779166241000,-219.38264762,0.00026,2]
[422623594,1779166241000,-300.0,0.00026399,10]
[422623593,1779166241000,-851.4,0.00026296,2]
[422623601,1779166241000,-530.0,0.00027,2]
[422623592,1779166241000,-550.0,0.00026,2]
[422623595,1779166241000,-27863.41561175,0.000264,2]
[422623600,1779166241000,-1049.41742621,0.00027,2]
[422623599,1779166241000,-250.0,0.00027,2]
[422623575,1779166241000,-150.0,0.00025656,21]
[422623589,1779166241000,-4583.6875376,0.00026,2]
[422623569,1779166241000,-150.0,0.00025656,21]
[422623557,1779166241000,-2000.0,0.00025137,2]
[422623572,1779166241000,-150.0,0.00025656,21]
[422623596,1779166241000,-500.0,0.00026416,2]
[422623551,1779166241000,-151.0,0.00025117,2]
[422623543,1779166241000,-5811.57,0.00025063,7]
[422623548,1779166241000,-859.00212313,0.00025117,2]
[422623546,1779166241000,-2000.0,0.00025107,2]
[422623544,1779166241000,-1337.67162062,0.00025087,2]
[422623542,1779166241000,-152.577983,0.00025059,2]
[422623547,1779166241000,-2000.0,0.00025117,2]
[422623550,1779166241000,-153.374982,0.00025117,2]
[422623545,1779166241000,-2000.0,0.00025097,2]
[422623549,1779166241000,-151.0,0.00025117,2]
[422623553,1779166241000,-2000.0,0.00025127,2]
[422623563,1779166241000,-1107.19510695,0.0002554,2]
[422623565,1779166241000,-150.0,0.00025656,21]
[422623564,1779166241000,-1209.21,0.00025571,2]
[422623558,1779166241000,-151.0,0.00025137,2]
[422623560,1779166241000,-151.0,0.00025137,2]
[422623554,1779166241000,-151.0,0.00025127,2]
[422623555,1779166241000,-151.0,0.00025127,2]
[422623559,1779166241000,-151.0,0.00025137,2]
[422623562,1779166241000,-1394.74,0.000252,7]
[422623561,1779166241000,-151.0,0.00025137,2]
[422623552,1779166241000,-2000.0,0.00025127,2]
[422623556,1779166241000,-2000.0,0.00025137,2]
[422623566,1779166241000,-150.0,0.00025656,21]
[422623568,1779166241000,-150.0,0.00025656,21]
[422623571,1779166241000,-150.0,0.00025656,21]
[422623567,1779166241000,-150.0,0.00025656,21]
[422623598,1779166241000,-2000.0,0.00027,2]
[422623624,1779166241000,-151.0,0.00027397,2]
[422623613,1779166241000,-8239.85632476,0.0002739,2]
[422623637,1779166241000,-151.0,0.00027397,2]
[422623635,1779166241000,-221.758982,0.00027397,2]
[422623638,1779166241000,-25070.69,0.00027397,10]
[422623643,1779166241000,-5962.91,0.000274,14]
[422623640,1779166241000,-36133.6,0.00027397,10]
[422623642,1779166241000,-154.6,0.000274,7]
[422623641,1779166241000,-155.24,0.000274,7]
[422623648,1779166241000,-5196.41,0.000274,2]
[422623645,1779166241000,-5196.41,0.000274,2]
[422623646,1779166241000,-5196.41,0.000274,2]
[422623647,1779166241000,-5196.41,0.000274,2]
[422623639,1779166241000,-43360.31,0.00027397,10]
[422623644,1779166241000,-5196.41,0.000274,2]
[422623651,1779166241000,-625.0,0.00027479,2]
[422623661,1779166241000,-432.08,0.00027842,2]
[422623659,1779166241000,-503.0,0.00027824,2]
[422623654,1779166241000,-1270.0,0.00027479,2]
[422623657,1779166241000,-1567.56,0.00027752,7]
[422623650,1779166241000,-3544.0,0.00027479,2]
[422623656,1779166241000,-3633.0,0.00027479,2]
[422623652,1779166241000,-927.0,0.00027479,2]
[422623660,1779166241000,-432.08,0.00027842,2]
[422623658,1779166241000,-500.0,0.000278,7]
[422623653,1779166241000,-1354.0,0.00027479,2]
[422623655,1779166241000,-5071.449,0.00027479,2]
[422623662,1779166241000,-151.67104361,0.00027842,2]
[422623603,1779166241000,-184.41534626,0.00027023,2]
[422623636,1779166241000,-151.0,0.00027397,2]
[422623633,1779166241000,-221.758982,0.00027397,2]
[422623649,1779166241000,-150.0,0.00027479,2]
[422623634,1779166241000,-221.758982,0.00027397,2]
[422623632,1779166241000,-221.758982,0.00027397,2]
[422623602,1779166241000,-2575.529742,0.0002701,2]
[422623609,1779166241000,-503.0,0.00027137,2]
[422623604,1779166241000,-300.0,0.00027099,10]
[422623606,1779166241000,-150.0,0.00027123,20]
[422623608,1779166241000,-365.58853386,0.00027123,2]
[422623611,1779166241000,-2000.0,0.000273,2]
[422623610,1779166241000,-1394.74,0.000272,7]
[422623607,1779166241000,-3638.0,0.00027123,2]
[422623605,1779166241000,-57221.92,0.000271,2]
[422623615,1779166241000,-178.79387469,0.00027396,10]
[422623617,1779166241000,-500.0,0.00027397,2]
[422623618,1779166241000,-150.0,0.00027397,2]
[422623622,1779166241000,-498.22,0.00027397,2]
[422623612,1779166241000,-4170.94930463,0.0002739,2]
[422623627,1779166241000,-151.0,0.00027397,2]
[422623621,1779166241000,-1465.85,0.00027397,2]
[422623629,1779166241000,-151.0,0.00027397,2]
[422623631,1779166241000,-151.0,0.00027397,2]
[422623630,1779166241000,-151.0,0.00027397,2]
[422623628,1779166241000,-151.0,0.00027397,2]
[422623625,1779166241000,-151.0,0.00027397,2]
[422623614,1779166241000,-151.0,0.00027394,7]
[422623623,1779166241000,-300.0,0.00027397,2]
[422623619,1779166241000,-1500.0,0.00027397,2]
[422623616,1779166241000,-1209.19731776,0.00027397,2]
[422623663,1779166241000,-223.88248377,0.00027842,2]
[422623620,1779166241000,-4832.81867523,0.00027397,21]
[422623626,1779166241000,-526.88,0.00027397,2]
[422623708,1779166242000,-151.64,0.000287,30]
[422623704,1779166242000,-960.62,0.00028693,30]
[422623714,1779166242000,-243.62,0.00028725,2]
[422623702,1779166242000,-263.68,0.00028693,30]
[422623713,1779166242000,-962.87,0.00028725,2]
[422623706,1779166242000,-155.24,0.000287,7]
[422623710,1779166242000,-1587.0,0.0002872,3]
[422623693,1779166242000,-960.62,0.00028661,7]
[422623690,1779166242000,-962.87,0.00028661,7]
[422623691,1779166242000,-243.62,0.00028661,7]
[422623716,1779166242000,-960.62,0.00028725,2]
[422623712,1779166242000,-263.74,0.00028725,2]
[422623694,1779166242000,-151.64,0.00028665,7]
[422623726,1779166242000,-151.64,0.00028771,7]
[422623709,1779166242000,-154.11,0.000287,30]
[422623711,1779166242000,-240.44,0.00028725,2]
[422623717,1779166242000,-151.64,0.00028736,2]
[422623719,1779166242000,-240.44,0.00028756,7]
[422623721,1779166242000,-962.87,0.00028756,7]
[422623720,1779166242000,-263.74,0.00028756,7]
[422623722,1779166242000,-243.62,0.00028756,7]
[422623718,1779166242000,-154.11,0.00028736,2]
[422623724,1779166242000,-960.62,0.00028756,7]
[422623723,1779166242000,-263.68,0.00028756,7]
[422623725,1779166242000,-368.52553806,0.00028767,2]
[422623727,1779166242000,-154.11,0.00028771,7]
[422623695,1779166242000,-154.11,0.00028665,7]
[422623715,1779166242000,-263.68,0.00028725,2]
[422623687,1779166242000,-960.62,0.0002863,2]
[422623674,1779166242000,-432.07,0.0002846,2]
[422623697,1779166242000,-263.74,0.00028693,30]
[422623728,1779166242000,-240.44,0.00028788,30]
[422623664,1779166242000,-432.08,0.00027843,2]
[422623667,1779166242000,-600.0,0.00028,2]
[422623671,1779166242000,-5962.91,0.000283,14]
[422623668,1779166242000,-189.59,0.00028,2]
[422623666,1779166242000,-432.07,0.00027845,2]
[422623670,1779166242000,-851.4,0.00028267,2]
[422623673,1779166242000,-432.07,0.0002846,2]
[422623669,1779166242000,-5811.57,0.00028126,7]
[422623672,1779166242000,-4832.81867524,0.00028351,21]
[422623665,1779166242000,-432.07,0.00027844,2]
[422623676,1779166242000,-20793.05938883,0.00028514,2]
[422623675,1779166242000,-503.0,0.0002851,3]
[422623686,1779166242000,-154.11,0.0002863,2]
[422623678,1779166242000,-626.0,0.000286,7]
[422623682,1779166242000,-151.64,0.0002863,2]
[422623685,1779166242000,-263.68,0.0002863,2]
[422623684,1779166242000,-243.62,0.0002863,2]
[422623683,1779166242000,-962.87,0.0002863,2]
[422623680,1779166242000,-240.44,0.0002863,2]
[422623679,1779166242000,-2000.0,0.000286,2]
[422623681,1779166242000,-263.74,0.0002863,2]
[422623688,1779166242000,-240.44,0.00028661,7]
[422623700,1779166242000,-243.62,0.00028693,30]
[422623698,1779166242000,-962.87,0.00028693,30]
[422623696,1779166242000,-240.44,0.00028693,30]
[422623692,1779166242000,-263.68,0.00028661,7]
[422623689,1779166242000,-263.74,0.00028661,7]
[422623730,1779166242000,-962.87,0.00028788,30]
[422623677,1779166242000,-154.6,0.000286,7]
[422623737,1779166242000,-151.64,0.00028807,30]
[422623771,1779166242000,-154.11,0.00028913,30]
[422623773,1779166242000,-263.74,0.00028915,2]
[422623777,1779166242000,-960.62,0.00028915,2]
[422623776,1779166242000,-263.68,0.00028915,2]
[422623781,1779166242000,-156.7,0.00028926,13]
[422623780,1779166242000,-156.7,0.00028926,13]
[422623782,1779166242000,-240.44,0.00028947,7]
[422623779,1779166242000,-156.7,0.00028926,13]
[422623786,1779166242000,-263.68,0.00028947,7]
[422623783,1779166242000,-263.74,0.00028947,7]
[422623785,1779166242000,-243.62,0.00028947,7]
[422623778,1779166242000,-156.7,0.00028926,13]
[422623787,1779166242000,-960.62,0.00028947,7]
[422623772,1779166242000,-240.44,0.00028915,2]
[422623789,1779166242000,-154.11,0.00028949,2]
[422623800,1779166242000,-962.87,0.0002901,2]
[422623788,1779166242000,-151.64,0.00028949,2]
[422623792,1779166242000,-962.87,0.00028979,30]
[422623791,1779166242000,-263.74,0.00028979,30]
[422623793,1779166242000,-243.62,0.00028979,30]
[422623799,1779166242000,-263.74,0.0002901,2]
[422623790,1779166242000,-240.44,0.00028979,30]
[422623797,1779166242000,-154.11,0.00028984,7]
[422623794,1779166242000,-263.68,0.00028979,30]
[422623795,1779166242000,-960.62,0.00028979,30]
[422623796,1779166242000,-151.64,0.00028984,7]
[422623798,1779166242000,-240.44,0.0002901,2]
[422623735,1779166242000,-960.62,0.00028788,30]
[422623801,1779166242000,-243.62,0.0002901,2]
[422623766,1779166242000,-263.68,0.00028883,30]
[422623784,1779166242000,-962.87,0.00028947,7]
[422623764,1779166242000,-962.87,0.00028883,30]
[422623729,1779166242000,-263.74,0.00028788,30]
[422623770,1779166242000,-151.64,0.00028913,30]
[422623731,1779166242000,-243.62,0.00028788,30]
[422623733,1779166242000,-263.68,0.00028788,30]
[422623746,1779166242000,-962.87,0.0002882,2]
[422623740,1779166242000,-240.44,0.0002882,2]
[422623743,1779166242000,-263.74,0.0002882,2]
[422623739,1779166242000,-154.11,0.00028807,30]
[422623748,1779166242000,-243.62,0.0002882,2]
[422623749,1779166242000,-263.68,0.0002882,2]
[422623751,1779166242000,-151.64,0.00028842,2]
[422623753,1779166242000,-240.44,0.00028852,7]
[422623763,1779166242000,-263.74,0.00028883,30]
[422623752,1779166242000,-154.11,0.00028842,2]
[422623750,1779166242000,-960.62,0.0002882,2]
[422623765,1779166242000,-243.62,0.00028883,30]
[422623759,1779166242000,-960.62,0.00028852,7]
[422623757,1779166242000,-263.68,0.00028852,7]
[422623754,1779166242000,-263.74,0.00028852,7]
[422623762,1779166242000,-240.44,0.00028883,30]
[422623761,1779166242000,-154.11,0.00028878,7]
[422623755,1779166242000,-962.87,0.00028852,7]
[422623760,1779166242000,-151.64,0.00028878,7]
[422623768,1779166242000,-1394.74,0.000289,7]
[422623775,1779166242000,-243.62,0.00028915,2]
[422623769,1779166242000,-227.0,0.00028904,2]
[422623756,1779166242000,-243.62,0.00028852,7]
[422623767,1779166242000,-960.62,0.00028883,30]
[422623774,1779166242000,-962.87,0.00028915,2]
[422623854,1779166243000,-243.62,0.00029201,2]
[422623845,1779166243000,-960.62,0.00029169,30]
[422623834,1779166243000,-243.62,0.00029137,7]
[422623846,1779166243000,-152.0,0.00029186,3]
[422623855,1779166243000,-263.68,0.00029201,2]
[422623843,1779166243000,-243.62,0.00029169,30]
[422623836,1779166243000,-960.62,0.00029137,7]
[422623838,1779166243000,-151.64,0.00029161,2]
[422623840,1779166243000,-240.44,0.00029169,30]
[422623841,1779166243000,-263.74,0.00029169,30]
[422623839,1779166243000,-154.11,0.00029161,2]
[422623848,1779166243000,-151.64,0.00029197,7]
[422623844,1779166243000,-263.68,0.00029169,30]
[422623847,1779166243000,-503.0,0.00029197,4]
[422623868,1779166243000,-200.0,0.00029469,2]
[422623849,1779166243000,-154.11,0.00029197,7]
[422623851,1779166243000,-240.44,0.00029201,2]
[422623850,1779166243000,-5962.91,0.000292,14]
[422623852,1779166243000,-263.74,0.00029201,2]
[422623856,1779166243000,-960.62,0.00029201,2]
[422623859,1779166243000,-151.68,0.00029232,30]
[422623860,1779166243000,-962.89,0.00029232,7]
[422623858,1779166243000,-263.85,0.00029232,7]
[422623862,1779166243000,-263.79,0.00029232,7]
[422623867,1779166243000,-151.88205614,0.00029236,2]
[422623857,1779166243000,-240.54,0.00029232,7]
[422623864,1779166243000,-960.81,0.00029232,7]
[422623863,1779166243000,-154.28,0.00029232,30]
[422623835,1779166243000,-263.68,0.00029137,7]
[422623853,1779166243000,-962.87,0.00029201,2]
[422623837,1779166243000,-531.81923713,0.00029155,2]
[422623804,1779166243000,-151.64,0.0002902,30]
[422623833,1779166243000,-962.87,0.00029137,7]
[422623803,1779166243000,-960.62,0.0002901,2]
[422623807,1779166243000,-263.74,0.00029042,7]
[422623861,1779166243000,-243.65,0.00029232,7]
[422623802,1779166243000,-263.68,0.0002901,2]
[422623814,1779166243000,-240.44,0.00029074,30]
[422623808,1779166243000,-962.87,0.00029042,7]
[422623813,1779166243000,-154.11,0.00029055,2]
[422623805,1779166243000,-154.11,0.0002902,30]
[422623806,1779166243000,-240.44,0.00029042,7]
[422623810,1779166243000,-263.68,0.00029042,7]
[422623809,1779166243000,-243.62,0.00029042,7]
[422623812,1779166243000,-151.64,0.00029055,2]
[422623811,1779166243000,-960.62,0.00029042,7]
[422623826,1779166243000,-263.68,0.00029105,2]
[422623816,1779166243000,-962.87,0.00029074,30]
[422623828,1779166243000,-151.64,0.00029126,30]
[422623815,1779166243000,-263.74,0.00029074,30]
[422623830,1779166243000,-169.25,0.0002913,3]
[422623829,1779166243000,-154.11,0.00029126,30]
[422623832,1779166243000,-263.74,0.00029137,7]
[422623842,1779166243000,-962.87,0.00029169,30]
[422623824,1779166243000,-962.87,0.00029105,2]
[422623825,1779166243000,-243.62,0.00029105,2]
[422623831,1779166243000,-240.44,0.00029137,7]
[422623822,1779166243000,-240.44,0.00029105,2]
[422623820,1779166243000,-151.64,0.00029091,7]
[422623819,1779166243000,-960.62,0.00029074,30]
[422623823,1779166243000,-263.74,0.00029105,2]
[422623818,1779166243000,-263.68,0.00029074,30]
[422623827,1779166243000,-960.62,0.00029105,2]
[422623817,1779166243000,-243.62,0.00029074,30]
[422623821,1779166243000,-154.11,0.00029091,7]
[422623865,1779166243000,-159.19555147,0.00029236,7]
[422623893,1779166243000,-151.0,0.00029997,7]
[422623880,1779166243000,-1500.0,0.00029534,15]
[422623906,1779166243000,-151.0,0.0003,7]
[422623901,1779166243000,-12849.74415731,0.0003,10]
[422623897,1779166243000,-10512.9017638,0.0003,5]
[422623900,1779166243000,-87877.0,0.0003,2]
[422623907,1779166243000,-151.0,0.0003,7]
[422623911,1779166243000,-650.0,0.0003,2]
[422623913,1779166243000,-151.00000004,0.0003,7]
[422623866,1779166243000,-271.49268601,0.00029236,7]
[422623915,1779166243000,-151.0,0.0003,7]
[422623912,1779166243000,-151.0,0.0003,7]
[422623914,1779166243000,-152.96914,0.0003,7]
[422623920,1779166243000,-151.0,0.0003,7]
[422623917,1779166243000,-200.0,0.0003,2]
[422623918,1779166243000,-189.45061,0.0003,7]
[422623903,1779166243000,-1846.46241805,0.0003,2]
[422623919,1779166243000,-200.0,0.0003,2]
[422623916,1779166243000,-151.0,0.0003,7]
[422623921,1779166243000,-151.0,0.0003,7]
[422623925,1779166243000,-201.101492,0.0003,7]
[422623935,1779166243000,-156.7,0.00030022,13]
[422623929,1779166243000,-200.0,0.0003,2]
[422623931,1779166243000,-151.0,0.0003,7]
[422623927,1779166243000,-201.101492,0.0003,7]
[422623924,1779166243000,-234.357101,0.0003,7]
[422623932,1779166243000,-151.0,0.0003,7]
[422623926,1779166243000,-201.101492,0.0003,7]
[422623930,1779166243000,-201.101492,0.0003,7]
[422623933,1779166243000,-162.0,0.0003001,30]
[422623928,1779166243000,-293.870436,0.0003,7]
[422623934,1779166243000,-156.7,0.00030022,13]
[422623922,1779166243000,-151.0,0.0003,7]
[422623904,1779166243000,-1000.0,0.0003,2]
[422623923,1779166243000,-151.0,0.0003,7]
[422623905,1779166243000,-165.59661619,0.0003,2]
[422623870,1779166243000,-156.7,0.00029474,13]
[422623869,1779166243000,-156.7,0.00029474,13]
[422623877,1779166243000,-1500.0,0.00029534,15]
[422623873,1779166243000,-587.45,0.00029527,30]
[422623881,1779166243000,-1500.0,0.00029534,15]
[422623902,1779166243000,-1121.43545911,0.0003,2]
[422623872,1779166243000,-156.7,0.00029474,13]
[422623882,1779166243000,-1500.0,0.00029534,15]
[422623871,1779166243000,-156.7,0.00029474,13]
[422623878,1779166243000,-1500.0,0.00029534,15]
[422623874,1779166243000,-1500.0,0.00029534,15]
[422623875,1779166243000,-1500.0,0.00029534,15]
[422623879,1779166243000,-1500.0,0.00029534,15]
[422623883,1779166243000,-1500.0,0.00029534,15]
[422623894,1779166243000,-151.0,0.00029997,7]
[422623876,1779166243000,-1500.0,0.00029534,15]
[422623885,1779166243000,-150.0,0.00029534,2]
[422623891,1779166243000,-150.0,0.000299,30]
[422623899,1779166243000,-20184.86368222,0.0003,2]
[422623909,1779166243000,-200.0,0.0003,2]
[422623908,1779166243000,-151.0,0.0003,7]
[422623898,1779166243000,-336.75381816,0.0003,5]
[422623887,1779166243000,-154.6,0.000296,7]
[422623890,1779166243000,-171.05922179,0.000299,30]
[422623910,1779166243000,-200.0,0.0003,2]
[422623896,1779166243000,-312647.9317676,0.0003,7]
[422623895,1779166243000,-312647.9317676,0.0003,7]
[422623886,1779166243000,-1567.56,0.00029556,7]
[422623892,1779166243000,-721.32467522,0.0002997,2]
[422623888,1779166243000,-2314.0,0.0002968,3]
[422623884,1779166243000,-1737.625557,0.00029534,15]
[422623889,1779166243000,-503.0,0.00029883,5]
[422623941,1779166244000,-150.0,0.0003003,2]
[422623953,1779166244000,-18628.21762706,0.00030125,2]
[422623952,1779166244000,-44471.31833794,0.00030125,2]
[422623956,1779166244000,-1407.13607521,0.00030125,2]
[422623950,1779166244000,-158.0,0.0003012,30]
[422623951,1779166244000,-160.0,0.0003012,30]
[422623946,1779166244000,-151.0,0.000301,7]
[422623947,1779166244000,-151.0,0.000301,7]
[422623945,1779166244000,-155.24,0.000301,7]
[422623939,1779166244000,-150.0,0.0003003,2]
[422623954,1779166244000,-62291.78237294,0.00030125,2]
[422623943,1779166244000,-150.0,0.0003003,2]
[422623949,1779166244000,-537.0,0.0003012,30]
[422623942,1779166244000,-150.0,0.0003003,2]
[422623938,1779166244000,-150.0,0.0003003,2]
[422623940,1779166244000,-150.97290772,0.0003003,2]
[422623937,1779166244000,-156.7,0.00030022,13]
[422623936,1779166244000,-156.7,0.00030022,13]
[422623944,1779166244000,-332.0,0.00030045,2]
[422623955,1779166244000,-151.0,0.0003,7]
[422623948,1779166244000,-151.0,0.000301,7]
[422623957,1779166244000,-151.0,0.00025,2]
[422623977,1779166244000,-2181944.16464276,0.0003013,7]
[422623975,1779166244000,-644.38078689,0.0003013,2]
[422623976,1779166244000,-204.99260449,0.0003013,2]
[422623974,1779166244000,-13445.00541634,0.0003013,2]
[422623978,1779166244000,-274.06078536,0.00014788,2]
[422623973,1779166244000,-150.0,0.00030129,30]
[422623972,1779166244000,-154.79001677,0.00030127,7]
[422623971,1779166244000,-151.0,0.00030127,7]
[422623969,1779166244000,-221.758982,0.00030125,7]
[422623970,1779166244000,-221.758982,0.00030125,7]
[422623968,1779166244000,-221.758982,0.00030125,7]
[422623966,1779166244000,-154.732004,0.00030125,7]
[422623967,1779166244000,-221.758982,0.00030125,7]
[422623964,1779166244000,-151.0,0.00030125,7]
[422623959,1779166244000,-66148.33397399,0.00030125,2]
[422623960,1779166244000,-1744.2051123,0.00030125,2]
[422623962,1779166244000,-3233.2319384,0.00030125,2]
[422623963,1779166244000,-152.767854,0.00030125,7]
[422623961,1779166244000,-948.4391889,0.00030125,2]
[422623965,1779166244000,-163.374256,0.00030125,7]
[422623958,1779166244000,-6665.21246766,0.00030125,2]
[422623979,1779166246000,-3953.27122805,0.00014788,2]
[422623988,1779166253000,152.0,0.00012883,30]
[422623989,1779166278000,152.0,0.00012865,30]
[422623990,1779166329000,177.2,0.00026274,120]
[422623991,1779166329000,177.2,0.00028901,120]
[422623994,1779166648000,152.0,0.00012883,30]
[422623997,1779166668000,152.0,0.00012883,30]
[422624001,1779166854000,152.61,7.718e-05,2]
[422624000,1779166854000,152.61,7.219e-05,2]
[422623999,1779166854000,152.61,6.721e-05,2]
[422623998,1779166854000,152.61,6.223e-05,2]
[422624005,1779166855000,152.61,9.711e-05,2]
[422624004,1779166855000,152.61,9.212e-05,2]
[422624003,1779166855000,152.61,8.714e-05,2]
[422624002,1779166855000,152.61,8.216e-05,2]
[422624006,1779166874000,152.0,0.00012886,30]
[422624007,1779167181000,152.0,0.00012868,30]
[422624008,1779167203000,1236.19,0.0003013,120]
[422624009,1779167340000,1000.0,0.00030129,120]
[422624029,1779167431000,-166.88,0.00010842,2]
[422624030,1779167431000,-1200.0,0.00010845,2]
[422624027,1779167431000,-150.0,0.00010709,2]
[422624023,1779167431000,-150.0,0.00010604,2]
[422624026,1779167431000,-152.61,0.00010707,2]
[422624032,1779167431000,-9999.99,0.00010845,2]
[422624025,1779167431000,-1746.62882878,0.000107,2]
[422624024,1779167431000,-500.0,0.00010657,2]
[422624022,1779167431000,-345.99919109,0.00010537,2]
[422624020,1779167431000,-152.61,0.00010209,2]
[422624028,1779167431000,-150.0,0.00010814,2]
[422624031,1779167431000,-300.0,0.00010845,2]
[422624021,1779167431000,-250.0,0.00010333,2]
[422624034,1779167431000,-9999.99,0.00010846,2]
[422624033,1779167431000,-200.0,0.00010846,2]
[422624045,1779167431000,-150.0,0.00011282,2]
[422624043,1779167431000,-150.0,0.00011234,2]
[422624044,1779167431000,-150.0,0.00011268,2]
[422624042,1779167431000,-250.0,0.0001123,2]
[422624039,1779167431000,-150.0,0.00011129,2]
[422624046,1779167431000,-150.0,0.00011339,2]
[422624035,1779167431000,-4272.57,0.00010858,2]
[422624037,1779167431000,-150.0,0.00011024,2]
[422624038,1779167431000,-785.11,0.00011117,2]
[422624041,1779167431000,-152.61,0.00011205,2]
[422624036,1779167431000,-150.0,0.00010919,2]
[422624040,1779167431000,-10825.53,0.00011192,2]
[422624098,1779167432000,-500.0,0.00012614,2]
[422624093,1779167432000,-605.72934486,0.00012614,2]
[422624096,1779167432000,-500.0,0.00012614,2]
[422624092,1779167432000,-500.0,0.00012614,2]
[422624088,1779167432000,-500.0,0.00012614,2]
[422624089,1779167432000,-500.0,0.00012614,2]
[422624090,1779167432000,-500.0,0.00012614,2]
[422624086,1779167432000,-500.0,0.00012614,2]
[422624094,1779167432000,-500.0,0.00012614,2]
[422624091,1779167432000,-500.0,0.00012614,2]
[422624095,1779167432000,-500.0,0.00012614,2]
[422624111,1779167432000,-500.0,0.00012614,2]
[422624100,1779167432000,-500.0,0.00012614,2]
[422624097,1779167432000,-500.0,0.00012614,2]
[422624101,1779167432000,-500.0,0.00012614,2]
[422624102,1779167432000,-500.0,0.00012614,2]
[422624084,1779167432000,-500.0,0.00012614,2]
[422624104,1779167432000,-500.0,0.00012614,2]
[422624110,1779167432000,-500.0,0.00012614,2]
[422624112,1779167432000,-500.0,0.00012614,2]
[422624114,1779167432000,-500.0,0.00012614,2]
[422624113,1779167432000,-500.0,0.00012614,2]
[422624103,1779167432000,-500.0,0.00012614,2]
[422624099,1779167432000,-500.0,0.00012614,2]
[422624087,1779167432000,-500.0,0.00012614,2]